fUSD/lending_fUSD_20250826
["ID","MTS","AMOUNT","RATE_DAILY","PERIOD"]
[381398831,1756185110315,-400.0,0.0001726,2]
[381398832,1756185110324,-400.0,0.0001726,2]
[381398833,1756185110334,-764.28,0.0001726,2]
[381398834,1756185110344,-1443.29,0.0001726,2]
[381398835,1756185110354,-1136.83,0.0001726,2]
[381398836,1756185110364,-400.0,0.0001726,2]
[381398837,1756185110374,-415.22,0.0001726,2]
[381398838,1756185110383,-400.0,0.0001726,2]
[381398839,1756185110394,-660.63,0.0001726,2]
[381398840,1756185110403,-617.5,0.0001726,2]
[381398841,1756185110413,-764.69,0.0001726,2]
[381398842,1756185110423,-400.0,0.0001726,2]
[381398843,1756185110433,-400.0,0.0001726,2]
[381398844,1756185110443,-400.0,0.0001726,2]
[381398845,1756185110453,-541.83,0.0001726,2]
[381398846,1756185110463,-400.0,0.0001726,2]
[381398847,1756185110473,-1159.27,0.0001726,2]
[381398848,1756185110482,-729.09,0.0001726,2]
[381398849,1756185110492,-418.16,0.0001726,2]
[381398850,1756185110502,-400.0,0.0001726,2]
[381398851,1756185110511,-647.47,0.0001726,2]
[381398852,1756185110521,-415.3,0.0001726,2]
[381398853,1756185110531,-444.7,0.0001726,2]
[381398854,1756185110542,-477.54,0.0001726,2]
[381398855,1756185110552,-1112.42,0.0001726,2]
[381398856,1756185110562,-1195.41,0.0001726,2]
[381398857,1756185110572,-866.18,0.0001726,2]
[381398858,1756185110582,-1119.37,0.0001726,2]
[381398859,1756185110591,-400.0,0.0001726,2]
[381398860,1756185110601,-621.68,0.0001726,2]
[381398861,1756185110611,-400.0,0.0001726,2]
[381398862,1756185110621,-587.15,0.0001726,2]
[381398863,1756185110631,-400.0,0.0001726,2]
[381398864,1756185110640,-400.0,0.0001726,2]
[381398865,1756185110650,-465.78,0.0001726,2]
[381398866,1756185110659,-448.52,0.0001726,2]
[381398867,1756185110669,-400.0,0.0001726,2]
[381398868,1756185110678,-2001.47,0.0001726,2]
[381398869,1756185110688,-608.27,0.0001726,2]
[381398870,1756185110697,-400.0,0.0001726,2]
[381398871,1756185110708,-1243.18,0.0001726,2]
[381398872,1756185110719,-916.84,0.0001726,2]
[381398873,1756185110728,-400.0,0.0001726,2]
[381398874,1756185110738,-400.0,0.0001726,2]
[381398875,1756185110747,-469.09,0.0001726,2]
[381398876,1756185110758,-400.0,0.0001726,2]
[381398877,1756185110767,-447.27,0.0001726,2]
[381398878,1756185110777,-400.0,0.0001726,2]
[381398879,1756185110789,-400.0,0.0001726,2]
[381398880,1756185110798,-474.53,0.0001726,2]
[381398881,1756185110807,-921.44,0.0001726,2]
[381398882,1756185110975,-782.75,0.0001726,2]
[381398883,1756185110984,-1096.56,0.0001726,2]
[381398884,1756185110994,-400.0,0.0001726,2]
[381398885,1756185111003,-726.95,0.0001726,2]
[381398886,1756185111011,-400.44,0.0001726,2]
[381398887,1756185111021,-815.91,0.0001726,2]
[381398888,1756185111030,-442.4,0.0001726,2]
[381398889,1756185111039,-352.64199601,0.0001726,2]
[381398890,1756185111048,-629.92,0.0001726,2]
[381398891,1756185111057,-400.0,0.0001726,2]
[381398892,1756185111066,-402.01,0.0001726,2]
[381398893,1756185111076,-400.0,0.0001726,2]
[381398894,1756185111085,-428.84,0.0001726,2]
[381398895,1756185111094,-752.25,0.0001726,2]
[381398896,1756185111105,-1048.98,0.0001726,2]
[381398897,1756185111114,-400.0,0.0001726,2]
[381398898,1756185111123,-400.0,0.0001726,2]
[381398899,1756185111132,-515.52,0.0001726,2]
[381398900,1756185111141,-564.67,0.0001726,2]
[381398901,1756185111151,-747.57,0.0001726,2]
[381398902,1756185111160,-400.0,0.0001726,2]
[381398903,1756185111169,-400.0,0.0001726,2]
[381398904,1756185111178,-400.0,0.0001726,2]
[381398905,1756185111187,-442.88,0.0001726,2]
[381398906,1756185111196,-686.01,0.0001726,2]
[381398907,1756185111205,-400.0,0.0001726,2]
[381398908,1756185111215,-812.7,0.0001726,2]
[381398909,1756185111224,-400.0,0.0001726,2]
[381398910,1756185111234,-410.65,0.0001726,2]
[381398911,1756185111245,-809.62,0.0001726,2]
[381398912,1756185111254,-400.0,0.0001726,2]
[381398913,1756185111264,-681.47,0.0001726,2]
[381398914,1756185111273,-668.22,0.0001726,2]
[381398915,1756185111282,-532.58,0.0001726,2]
[381398916,1756185111292,-400.0,0.0001726,2]
[381398917,1756185111301,-400.0,0.0001726,2]
[381398918,1756185111310,-400.0,0.0001726,2]
[381398919,1756185111319,-460.76,0.0001726,2]
[381398920,1756185111328,-749.37,0.0001726,2]
[381398921,1756185111337,-400.0,0.0001726,2]
[381398922,1756185111346,-664.98,0.0001726,2]
[381398923,1756185111355,-400.0,0.0001726,2]
[381398924,1756185111365,-956.41,0.0001726,2]
[381398925,1756185111374,-641.5,0.0001726,2]
[381398926,1756185111383,-1137.36,0.0001726,2]
[381398927,1756185111392,-400.0,0.0001726,2]
[381398928,1756185111401,-400.0,0.0001726,2]
[381398929,1756185111411,-416.62,0.0001726,2]
[381398930,1756185111420,-400.0,0.0001726,2]
[381398931,1756185111429,-723.42,0.0001726,2]
[381398932,1756185111438,-400.0,0.0001726,2]
[381398933,1756185111448,-400.0,0.0001726,2]
[381398934,1756185111457,-1015.47,0.0001726,2]
[381398935,1756185111467,-459.3,0.0001726,2]
[381398936,1756185111476,-665.79,0.0001726,2]
[381398937,1756185111486,-1742.8,0.0001726,2]
[381398938,1756185111496,-400.0,0.0001726,2]
[381398939,1756185111505,-448.01,0.0001726,2]
[381398940,1756185111515,-400.0,0.0001726,2]
[381398941,1756185111526,-854.77,0.0001726,2]
[381398942,1756185111536,-644.5,0.0001726,2]
[381398943,1756185111547,-1214.11,0.0001726,2]
[381398944,1756185111556,-1098.15,0.0001726,2]
[381398945,1756185111566,-400.0,0.0001726,2]
[381398946,1756185111576,-600.46,0.0001726,2]
[381398947,1756185111585,-630.3,0.0001726,2]
[381398948,1756185111595,-875.07,0.0001726,2]
[381398949,1756185111605,-598.97,0.0001726,2]
[381398950,1756185111614,-400.0,0.0001726,2]
[381398951,1756185111623,-400.0,0.0001726,2]
[381398952,1756185111634,-400.0,0.0001726,2]
[381398953,1756185111643,-723.87,0.0001726,2]
[381398954,1756185111652,-400.0,0.0001726,2]
[381398955,1756185111661,-400.0,0.0001726,2]
[381398956,1756185111670,-849.33,0.0001726,2]
[381398957,1756185111679,-910.91,0.0001726,2]
[381398958,1756185111688,-886.48,0.0001726,2]
[381398959,1756185111698,-594.24,0.0001726,2]
[381398960,1756185111709,-423.36,0.0001726,2]
[381398961,1756185111718,-1012.16,0.0001726,2]
[381398962,1756185111727,-400.0,0.0001726,2]
[381398963,1756185111736,-400.0,0.0001726,2]
[381398964,1756185111745,-985.46,0.0001726,2]
[381398965,1756185111755,-445.79,0.0001726,2]
[381398966,1756185111764,-533.21,0.0001726,2]
[381398967,1756185111773,-401.68,0.0001726,2]
[381398968,1756185111783,-400.0,0.0001726,2]
[381398969,1756185111793,-400.0,0.0001726,2]
[381398970,1756185111802,-400.0,0.0001726,2]
[381398971,1756185111811,-400.0,0.0001726,2]
[381398972,1756185111820,-1383.65,0.0001726,2]
[381398973,1756185111829,-400.0,0.0001726,2]
[381398974,1756185111838,-400.0,0.0001726,2]
[381398975,1756185111848,-400.0,0.0001726,2]
[381398976,1756185111857,-400.0,0.0001726,2]
[381398977,1756185111868,-400.7859602,0.0001726,2]
[381398978,1756185111877,-480.16,0.0001726,2]
[381398979,1756185111887,-400.0,0.0001726,2]
[381398980,1756185111896,-400.0,0.0001726,2]
[381398981,1756185111905,-400.0,0.0001726,2]
[381398982,1756185111914,-467.4,0.0001726,2]
[381398983,1756185111923,-627.36,0.0001726,2]
[381398984,1756185111933,-400.0,0.0001726,2]
[381398985,1756185111942,-400.0,0.0001726,2]
[381398986,1756185111951,-400.0,0.0001726,2]
[381398987,1756185111960,-766.2,0.0001726,2]
[381398988,1756185111970,-400.0,0.0001726,2]
[381398989,1756185111979,-1545.02,0.0001726,2]
[381398990,1756185111990,-772.35,0.0001726,2]
[381398991,1756185112000,-498.09,0.0001726,2]
[381398992,1756185112010,-400.0,0.0001726,2]
[381398993,1756185112019,-400.0,0.0001726,2]
[381398994,1756185112028,-560.42,0.0001726,2]
[381398995,1756185112039,-400.0,0.0001726,2]
[381398996,1756185112049,-420.61,0.0001726,2]
[381398997,1756185112058,-400.0,0.0001726,2]
[381398998,1756185112067,-400.0,0.0001726,2]
[381398999,1756185112077,-400.0,0.0001726,2]
[381399000,1756185112086,-757.83,0.0001726,2]
[381399001,1756185112096,-400.0,0.0001726,2]
[381399002,1756185112107,-534.78,0.0001726,2]
[381399003,1756185112116,-444.28,0.0001726,2]
[381399004,1756185112125,-558.67,0.0001726,2]
[381399005,1756185112135,-1022.04,0.0001726,2]
[381399006,1756185112143,-400.0,0.0001726,2]
[381399007,1756185112153,-400.0,0.0001726,2]
[381399008,1756185112163,-234.7190828,0.0001726,2]
[381399009,1756185112172,-675.94,0.0001726,2]
[381399010,1756185112182,-400.0,0.0001726,2]
[381399011,1756185112192,-400.0,0.0001726,2]
[381399012,1756185112202,-400.0,0.0001726,2]
[381399013,1756185112211,-1280.71,0.0001726,2]
[381399014,1756185112220,-400.0,0.0001726,2]
[381399015,1756185112229,-400.0,0.0001726,2]
[381399016,1756185112238,-400.0,0.0001726,2]
[381399017,1756185112247,-485.64,0.0001726,2]
[381399018,1756185112256,-400.0,0.0001726,2]
[381399019,1756185112266,-400.0,0.0001726,2]
[381399020,1756185112275,-400.0,0.0001726,2]
[381399021,1756185112285,-400.0,0.0001726,2]
[381399022,1756185112296,-400.0,0.0001726,2]
[381399023,1756185112304,-610.72,0.0001726,2]
[381399024,1756185112313,-400.0,0.0001726,2]
[381399025,1756185112322,-477.47,0.0001726,2]
[381399026,1756185112331,-400.0,0.0001726,2]
[381399027,1756185112340,-540.8,0.0001726,2]
[381399028,1756185112350,-1703.78,0.0001726,2]
[381399029,1756185112361,-854.07,0.0001726,2]
[381399030,1756185112371,-866.97,0.0001726,2]
[381399031,1756185112380,-1769.0,0.0001726,2]
[381399032,1756185112389,-1153.71,0.0001726,2]
[381399033,1756185112399,-400.0,0.0001726,2]
[381399034,1756185112408,-400.0,0.0001726,2]
[381399035,1756185112418,-688.2,0.0001726,2]
[381399036,1756185112428,-400.0,0.0001726,2]
[381399037,1756185112437,-400.0,0.0001726,2]
[381399038,1756185112447,-2157.11,0.0001726,2]
[381399039,1756185112457,-1257.18,0.0001726,2]
[381399040,1756185112466,-778.45,0.0001726,2]
[381399041,1756185112475,-400.0,0.0001726,2]
[381399042,1756185112485,-486.66,0.0001726,2]
[381399043,1756185112494,-400.0,0.0001726,2]
[381399044,1756185112503,-412.33,0.0001726,2]
[381399045,1756185112513,-589.71,0.0001726,2]
[381399046,1756185112522,-1253.61,0.0001726,2]
[381399047,1756185112531,-1000.0,0.0001726,2]
[381399048,1756185112541,-400.0,0.0001726,2]
[381399049,1756185112551,-737.0,0.0001726,2]
[381399050,1756185112560,-400.0,0.0001726,2]
[381399051,1756185112569,-400.0,0.0001726,2]
[381399052,1756185112578,-400.0,0.0001726,2]
[381399053,1756185112588,-400.0,0.0001726,2]
[381399054,1756185112597,-799.25,0.0001726,2]
[381399055,1756185112606,-2027.77,0.0001726,2]
[381399056,1756185112615,-400.0,0.0001726,2]
[381399057,1756185112624,-721.15,0.0001726,2]
[381399058,1756185112633,-400.0,0.0001726,2]
[381399059,1756185112643,-1226.51,0.0001726,2]
[381399060,1756185112652,-602.69,0.0001726,2]
[381399061,1756185112661,-755.07,0.0001726,2]
[381399062,1756185112670,-1950.58,0.0001726,2]
[381399063,1756185112679,-400.0,0.0001726,2]
[381399064,1756185112689,-400.0,0.0001726,2]
[381399065,1756185112698,-400.0,0.0001726,2]
[381399066,1756185112708,-400.0,0.0001726,2]
[381399067,1756185112718,-912.19,0.0001726,2]
[381399068,1756185112727,-593.98,0.0001726,2]
[381399069,1756185112736,-400.0,0.0001726,2]
[381399070,1756185112745,-400.0,0.0001726,2]
[381399071,1756185112755,-667.81,0.0001726,2]
[381399072,1756185112764,-1068.64,0.0001726,2]
[381399073,1756185112773,-1442.7,0.0001726,2]
[381399074,1756185112783,-1001.68,0.0001726,2]
[381399075,1756185112792,-465.82,0.0001726,2]
[381399076,1756185112802,-400.0,0.0001726,2]
[381399077,1756185112811,-400.0,0.0001726,2]
[381399078,1756185112820,-556.5,0.0001726,2]
[381399079,1756185112830,-995.28,0.0001726,2]
[381399080,1756185112839,-400.0,0.0001726,2]
[381399081,1756185112848,-400.0,0.0001726,2]
[381399082,1756185112858,-400.0,0.0001726,2]
[381399083,1756185112867,-400.0,0.0001726,2]
[381399084,1756185112876,-400.0,0.0001726,2]
[381399085,1756185112885,-400.0,0.0001726,2]
[381399086,1756185112894,-614.94,0.0001726,2]
[381399087,1756185112904,-400.0,0.0001726,2]
[381399088,1756185112914,-453.72,0.0001726,2]
[381399089,1756185112923,-1356.06,0.0001726,2]
[381399090,1756185112933,-997.81,0.0001726,2]
[381399091,1756185112942,-1318.33,0.0001726,2]
[381399092,1756185112952,-433.81,0.0001726,2]
[381399093,1756185112962,-987.69,0.0001726,2]
[381399094,1756185112972,-877.92,0.0001726,2]
[381399095,1756185112981,-402.13155691,0.0001726,2]
[381399096,1756185112991,-400.0,0.0001726,2]
[381399097,1756185113007,-573.04,0.0001726,2]
[381399098,1756185113026,-1179.01,0.0001726,2]
[381399099,1756185113035,-400.0,0.0001726,2]
[381399100,1756185113045,-400.0,0.0001726,2]
[381399101,1756185113055,-785.57,0.0001726,2]
[381399102,1756185113064,-505.61,0.0001726,2]
[381399103,1756185113073,-680.05,0.0001726,2]
[381399104,1756185113083,-1271.36,0.0001726,2]
[381399105,1756185113092,-1390.13,0.0001726,2]
[381399106,1756185113101,-400.0,0.0001726,2]
[381399107,1756185113110,-155.85447612,0.0001726,2]
[381399108,1756185113120,-400.0,0.0001726,2]
[381399109,1756185113129,-1020.92,0.0001726,2]
[381399110,1756185113138,-400.0,0.0001726,2]
[381399111,1756185113147,-1438.29,0.0001726,2]
[381399112,1756185113157,-400.0,0.0001726,2]
[381399113,1756185113166,-400.0,0.0001726,2]
[381399114,1756185113175,-400.0,0.0001726,2]
[381399115,1756185113184,-1382.39,0.0001726,2]
[381399116,1756185113193,-652.4,0.0001726,2]
[381399117,1756185113203,-400.0,0.0001726,2]
[381399118,1756185113211,-244.82941305,0.0001726,2]
[381399119,1756185113221,-641.19,0.0001726,2]
[381399120,1756185113230,-727.77,0.0001726,2]
[381399121,1756185113240,-917.93,0.0001726,2]
[381399122,1756185113249,-400.0,0.0001726,2]
[381399123,1756185113258,-412.69,0.0001726,2]
[381399124,1756185113267,-1456.18,0.0001726,2]
[381399125,1756185113277,-400.0,0.0001726,2]
[381399126,1756185113286,-1444.66,0.0001726,2]
[381399127,1756185113295,-400.0,0.0001726,2]
[381399128,1756185113304,-400.0,0.0001726,2]
[381399129,1756185113314,-497.26,0.0001726,2]
[381399130,1756185113323,-400.0,0.0001726,2]
[381399131,1756185113332,-400.0,0.0001726,2]
[381399132,1756185113341,-400.0,0.0001726,2]
[381399133,1756185113350,-867.81,0.0001726,2]
[381399134,1756185113359,-522.11,0.0001726,2]
[381399135,1756185113381,-400.0,0.0001726,2]
[381399136,1756185113401,-966.54,0.0001726,2]
[381399137,1756185113411,-713.17,0.0001726,2]
[381399138,1756185113420,-1914.21,0.0001726,2]
[381399139,1756185113429,-1358.44,0.0001726,2]
[381399140,1756185113439,-400.0,0.0001726,2]
[381399141,1756185113447,-400.0,0.0001726,2]
[381399142,1756185113456,-400.0,0.0001726,2]
[381399143,1756185113465,-539.12,0.0001726,2]
[381399144,1756185113474,-400.0,0.0001726,2]
[381399145,1756185113483,-400.0,0.0001726,2]
[381399146,1756185113493,-444.72,0.0001726,2]
[381399147,1756185113502,-400.0,0.0001726,2]
[381399148,1756185113511,-400.0,0.0001726,2]
[381399149,1756185113521,-581.34,0.0001726,2]
[381399150,1756185113530,-1327.91,0.0001726,2]
[381399151,1756185113539,-400.0,0.0001726,2]
[381399152,1756185113549,-1002.01,0.0001726,2]
[381399153,1756185113558,-400.0,0.0001726,2]
[381399154,1756185113567,-1548.36,0.0001726,2]
[381399155,1756185113577,-740.16,0.0001726,2]
[381399156,1756185113586,-718.26,0.0001726,2]
[381399157,1756185113595,-666.89,0.0001726,2]
[381399158,1756185113604,-655.8,0.0001726,2]
[381399159,1756185113613,-400.0,0.0001726,2]
[381399160,1756185113622,-400.0,0.0001726,2]
[381399161,1756185113631,-842.3,0.0001726,2]
[381399162,1756185113641,-400.0,0.0001726,2]
[381399163,1756185113650,-842.01,0.0001726,2]
[381399164,1756185113659,-633.57,0.0001726,2]
[381399165,1756185113668,-559.63,0.0001726,2]
[381399166,1756185113677,-400.0,0.0001726,2]
[381399167,1756185113687,-1324.42,0.0001726,2]
[381399168,1756185113696,-1090.37,0.0001726,2]
[381399169,1756185113707,-447.3,0.0001726,2]
[381399170,1756185113717,-400.0,0.0001726,2]
[381399171,1756185113727,-522.10670601,0.0001726,2]
[381399172,1756185113736,-400.0,0.0001726,2]
[381399173,1756185113745,-845.8,0.0001726,2]
[381399174,1756185113757,-1580.64,0.0001726,2]
[381399175,1756185113766,-809.1,0.0001726,2]
[381399176,1756185113775,-488.96,0.0001726,2]
[381399177,1756185113785,-1005.05,0.0001726,2]
[381399178,1756185113794,-1402.89,0.0001726,2]
[381399179,1756185113803,-400.0,0.0001726,2]
[381399180,1756185113812,-820.31,0.0001726,2]
[381399181,1756185113821,-1732.57,0.0001726,2]
[381399182,1756185113830,-931.85505017,0.0001726,2]
[381399183,1756185114957,-453.520144,0.00012,2]
[381399184,1756185114967,-173.36494983,0.0001726,2]
[381399185,1756185114976,-1103.96086617,0.0001726,2]
[381399186,1756185115007,-3743.17913383,0.0001726,2]
[381399187,1756185115017,-937.98,0.0001726,2]
[381399188,1756185115026,-400.0,0.0001726,2]
[381399189,1756185115035,-403.62,0.0001726,2]
[381399190,1756185115045,-400.0,0.0001726,2]
[381399191,1756185115054,-1319.16,0.0001726,2]
[381399192,1756185115063,-400.0,0.0001726,2]
[381399193,1756185115073,-426.78,0.0001726,2]
[381399194,1756185115082,-400.0,0.0001726,2]
[381399195,1756185115092,-400.0,0.0001726,2]
[381399196,1756185115103,-1766.75,0.0001726,2]
[381399197,1756185115114,-1066.0,0.0001726,2]
[381399198,1756185115129,-753.45,0.0001726,2]
[381399199,1756185115140,-649.14,0.0001726,2]
[381399200,1756185115149,-747.83,0.0001726,2]
[381399201,1756185115159,-400.0,0.0001726,2]
[381399202,1756185115168,-756.72,0.0001726,2]
[381399203,1756185115178,-400.0,0.0001726,2]
[381399204,1756185115187,-1189.2,0.0001726,2]
[381399205,1756185115197,-400.0,0.0001726,2]
[381399206,1756185115208,-307.04577649,0.0001726,2]
[381399207,1756185115218,-400.0,0.0001726,2]
[381399208,1756185115228,-1191.47,0.0001726,2]
[381399209,1756185115238,-400.0,0.0001726,2]
[381399210,1756185115249,-1252.53,0.0001726,2]
[381399211,1756185115270,-627.21,0.0001726,2]
[381399212,1756185115280,-597.73,0.0001726,2]
[381399213,1756185115290,-830.56,0.0001726,2]
[381399214,1756185115301,-722.08,0.0001726,2]
[381399215,1756185115312,-1223.08,0.0001726,2]
[381399216,1756185115322,-552.31,0.0001726,2]
[381399217,1756185115332,-400.0,0.0001726,2]
[381399218,1756185115343,-685.95,0.0001726,2]
[381399219,1756185115353,-400.0,0.0001726,2]
[381399220,1756185115364,-910.22,0.0001726,2]
[381399221,1756185115374,-400.0,0.0001726,2]
[381399222,1756185115384,-483.31,0.0001726,2]
[381399223,1756185115395,-681.45,0.0001726,2]
[381399224,1756185115404,-458.3509322,0.0001726,2]
[381399225,1756185115413,-400.0,0.0001726,2]
[381399226,1756185115423,-1206.92,0.0001726,2]
[381399227,1756185115432,-656.73,0.0001726,2]
[381399228,1756185115442,-1519.76,0.0001726,2]
[381399229,1756185115451,-400.0,0.0001726,2]
[381399230,1756185115461,-664.31,0.0001726,2]
[381399231,1756185115470,-1239.44,0.0001726,2]
[381399232,1756185115480,-400.0,0.0001726,2]
[381399233,1756185115490,-1427.09,0.0001726,2]
[381399234,1756185115500,-427.85,0.0001726,2]
[381399235,1756185115510,-901.15,0.0001726,2]
[381399236,1756185115519,-654.96,0.0001726,2]
[381399237,1756185115530,-455.14,0.0001726,2]
[381399238,1756185115540,-1652.7,0.0001726,2]
[381399239,1756185115549,-1078.81,0.0001726,2]
[381399240,1756185115559,-782.55,0.0001726,2]
[381399241,1756185115567,-413.54,0.0001726,2]
[381399242,1756185115577,-1400.81,0.0001726,2]
[381399243,1756185115587,-2582.29,0.0001726,2]
[381399244,1756185115596,-400.0,0.0001726,2]
[381399245,1756185115606,-400.0,0.0001726,2]
[381399246,1756185115615,-1276.68,0.0001726,2]
[381399247,1756185115624,-1459.27,0.0001726,2]
[381399248,1756185115634,-1085.18,0.0001726,2]
[381399249,1756185115643,-1432.89,0.0001726,2]
[381399250,1756185115653,-400.0,0.0001726,2]
[381399251,1756185115663,-400.0,0.0001726,2]
[381399252,1756185115672,-588.69,0.0001726,2]
[381399253,1756185115681,-434.66,0.0001726,2]
[381399254,1756185115690,-400.0,0.0001726,2]
[381399255,1756185115699,-400.0,0.0001726,2]
[381399256,1756185115712,-400.0,0.0001726,2]
[381399257,1756185115721,-1243.6,0.0001726,2]
[381399258,1756185115731,-400.0,0.0001726,2]
[381399259,1756185115740,-400.0,0.0001726,2]
[381399260,1756185115749,-400.0,0.0001726,2]
[381399261,1756185115759,-1636.08,0.0001726,2]
[381399262,1756185115768,-1259.97,0.0001726,2]
[381399263,1756185115781,-565.23,0.0001726,2]
[381399264,1756185115790,-768.65,0.0001726,2]
[381399265,1756185115800,-986.8,0.0001726,2]
[381399266,1756185115809,-755.27,0.0001726,2]
[381399267,1756185115818,-422.62,0.0001726,2]
[381399268,1756185115827,-400.0,0.0001726,2]
[381399269,1756185115837,-400.0,0.0001726,2]
[381399270,1756185115846,-400.0,0.0001726,2]
[381399271,1756185115855,-716.91,0.0001726,2]
[381399272,1756185115865,-1221.45,0.0001726,2]
[381399273,1756185115874,-1076.56,0.0001726,2]
[381399274,1756185115884,-400.0,0.0001726,2]
[381399275,1756185115894,-465.6,0.0001726,2]
[381399276,1756185115903,-400.0,0.0001726,2]
[381399277,1756185115912,-556.18,0.0001726,2]
[381399278,1756185115921,-511.97,0.0001726,2]
[381399279,1756185115930,-400.0,0.0001726,2]
[381399280,1756185115940,-1132.31,0.0001726,2]
[381399281,1756185115949,-400.0,0.0001726,2]
[381399282,1756185115958,-1566.42,0.0001726,2]
[381399283,1756185115968,-1017.27,0.0001726,2]
[381399284,1756185115978,-400.0,0.0001726,2]
[381399285,1756185115987,-1313.05,0.0001726,2]
[381399286,1756185115996,-687.21,0.0001726,2]
[381399287,1756185116006,-1508.61,0.0001726,2]
[381399288,1756185116015,-592.08,0.0001726,2]
[381399289,1756185116025,-1063.21,0.0001726,2]
[381399290,1756185116034,-501.42156158,0.0001726,2]
[381399291,1756185116052,-1020.77843842,0.0001726,2]
[381399292,1756185116062,-400.0,0.0001726,2]
[381399293,1756185116072,-400.0,0.0001726,2]
[381399294,1756185116083,-1200.74,0.0001726,2]
[381399295,1756185116094,-701.64,0.0001726,2]
[381399296,1756185116105,-667.18,0.0001726,2]
[381399297,1756185116115,-527.92,0.0001726,2]
[381399298,1756185116125,-400.0,0.0001726,2]
[381399299,1756185116135,-1238.21,0.0001726,2]
[381399300,1756185116144,-400.0,0.0001726,2]
[381399301,1756185116154,-1531.34,0.0001726,2]
[381399302,1756185116163,-839.07,0.0001726,2]
[381399303,1756185116173,-400.0,0.0001726,2]
[381399304,1756185116182,-833.94,0.0001726,2]
[381399305,1756185116191,-885.16,0.0001726,2]
[381399306,1756185116200,-1833.89,0.0001726,2]
[381399307,1756185116210,-400.0,0.0001726,2]
[381399308,1756185116219,-708.49,0.0001726,2]
[381399309,1756185116228,-400.0,0.0001726,2]
[381399310,1756185116237,-400.0,0.0001726,2]
[381399311,1756185116247,-1012.23,0.0001726,2]
[381399312,1756185116256,-400.0,0.0001726,2]
[381399313,1756185116265,-406.06,0.0001726,2]
[381399314,1756185116275,-400.0,0.0001726,2]
[381399315,1756185116285,-400.0,0.0001726,2]
[381399316,1756185116295,-1222.85,0.0001726,2]
[381399317,1756185116304,-1919.78,0.0001726,2]
[381399318,1756185116313,-400.0,0.0001726,2]
[381399319,1756185116323,-400.0,0.0001726,2]
[381399320,1756185116333,-923.51,0.0001726,2]
[381399321,1756185116342,-510.89,0.0001726,2]
[381399322,1756185116352,-403.04412881,0.0001726,2]
[381399323,1756185116361,-1631.74,0.0001726,2]
[381399324,1756185116370,-972.66,0.0001726,2]
[381399325,1756185116379,-623.95,0.0001726,2]
[381399326,1756185116388,-1430.22,0.0001726,2]
[381399327,1756185116397,-875.91,0.0001726,2]
[381399328,1756185116407,-678.39,0.0001726,2]
[381399329,1756185116416,-911.93,0.0001726,2]
[381399330,1756185116425,-400.0,0.0001726,2]